bitfinex/quotes_ETHUSD_20250731
["timestamp","ask_amount","ask_price","bid_price","bid_amount"]
[1753983905956,0.002,3791.5,3791.4,7.40354813]
[1753983906158,0.002,3791.5,3791.4,4.22167036]
[1753983906456,0.002,3791.5,3791.4,8.30467036]
[1753983906862,0.002,3791.5,3791.4,9.01147036]
[1753983907268,0.7764,3791.5,3791.4,5.66712223]
[1753983907560,1.2117,3791.5,3791.4,1.58412223]
[1753983907764,1.2117,3791.5,3791.4,0.132]
[1753983907960,1.2117,3791.5,3791.4,4.215]
[1753983909575,3.84917857,3791.5,3791.4,4.215]
[1753983909741,3.84917857,3791.5,3791.4,0.132]
[1753983910075,1.2117,3791.5,3791.4,4.083]
[1753983910276,0.002,3791.5,3791.4,4.083]
[1753983910429,0.002,3791.5,3791.4,7.81084813]
[1753983911340,0.002,3791.5,3791.4,8.51764813]
[1753983911799,0.002,3791.5,3791.4,7.81084813]
[1753983912003,0.7764,3791.5,3791.4,4.215]
[1753983912224,1.2117,3791.5,3791.4,4.215]
[1753983912995,0.7764,3791.5,3791.4,6.85254813]
[1753983913349,0.002,3791.5,3791.4,6.85254813]
[1753983913791,0.002,3791.5,3791.4,2.76954813]
[1753983913988,0.002,3791.5,3791.4,0.132]
[1753983914290,1.2117,3791.5,3791.4,0.132]
[1753983914479,1.2117,3791.5,3791.4,4.214]
[1753983914892,3.84917857,3791.5,3791.4,4.214]
[1753983915084,1.2117,3791.5,3791.4,4.214]
[1753983915662,0.002,3791.5,3791.4,4.214]
[1753983916008,0.002,3791.5,3791.4,7.53671728]
[1753983916562,0.002,3791.5,3791.4,8.24341728]
[1753983917299,0.002,3791.5,3791.4,12.25491728]
[1753983917703,1e-08,3791.9,3791.8,33.18726989]
[1753983917906,1e-08,3791.9,3791.8,40.40126989]
[1753983918068,1e-08,3791.9,3791.8,41.08038675]
[1753983918399,1e-08,3791.9,3791.8,16.37703375]
[1753983919966,1e-08,3791.9,3791.8,12.87112075]
[1753983920575,1e-08,3791.9,3791.8,12.32112075]
[1753983920903,1e-08,3791.9,3791.8,12.87112075]
[1753983921112,1e-08,3791.9,3791.8,8.78912075]
[1753983921269,1e-08,3791.9,3791.8,7.40026989]
[1753983921770,1e-08,3791.9,3791.8,10.40026989]
[1753983922106,1.20980001,3791.9,3791.8,0.132]
[1753983922306,1.20980001,3791.9,3791.8,4.213]
[1753983923465,3.84700035,3791.9,3791.8,4.213]
[1753983923863,1.20980001,3791.9,3791.8,4.213]
[1753983924505,3.84700035,3791.9,3791.8,4.213]
[1753983924898,3.84700035,3791.9,3791.8,0.132]
[1753983925208,3.84700035,3791.9,3791.8,4.213]
[1753983925418,1e-08,3791.9,3791.8,4.213]
[1753983925715,1e-08,3791.9,3791.8,7.53530649]
[1753983925874,1.20980001,3791.9,3791.8,4.213]
[1753983926271,1e-08,3791.9,3791.8,6.85026989]
[1753983926506,1e-08,3791.9,3791.8,8.10696989]
[1753983926807,1e-08,3791.9,3791.8,8.56846989]
[1753983927018,1e-08,3791.9,3791.8,9.68905405]
[1753983927964,1e-08,3791.9,3791.8,9.22755405]
[1753983928169,1e-08,3791.9,3791.8,12.68905405]
[1753983928665,1e-08,3791.9,3791.8,22.68064205]
[1753983928907,1e-08,3791.9,3791.8,18.10480805]
[1753983929785,1e-08,3791.9,3791.8,16.39879505]
[1753983930734,1e-08,3791.9,3791.8,11.47545805]
[1753983930938,1e-08,3791.9,3791.8,8.60805405]
[1753983931112,1e-08,3791.9,3791.8,10.96985405]
[1753983931928,1e-08,3791.9,3791.8,11.51985405]
[1753983932537,1e-08,3791.9,3791.8,12.22655405]
[1753983932748,1e-08,3791.9,3791.8,37.36229505]
[1753983933542,1e-08,3791.9,3791.8,18.61131305]
[1753983939856,0.002,3792.7,3792.6,3.1867136]
[1753983940006,0.002,3792.7,3792.6,17.18006445]
[1753983940209,0.002,3792.7,3792.6,18.48026445]
[1753983940450,0.042,3792.9,3792.6,18.48026445]
[1753983940451,0.042,3792.9,3792.8,3.18657456]
[1753983940651,0.042,3792.9,3792.8,38.26225056]
[1753983940971,0.042,3792.9,3792.8,34.94900456]
[1753983941115,0.042,3792.9,3792.8,27.74699656]
[1753983941426,0.042,3792.9,3792.8,19.62771656]
[1753983941848,0.042,3792.9,3792.8,17.84310856]
[1753983942064,0.042,3792.9,3792.8,22.75846456]
[1753983942240,0.042,3792.9,3792.8,15.23916556]
[1753983943062,0.042,3792.9,3792.8,37.57057956]
[1753983943409,1e-08,3792.9,3792.8,44.48144955]
[1753983943662,0.04,3793.9,3792.9,0.55]
[1753983943954,0.04,3793.9,3793.8,6.18587959]
[1753983944279,0.04,3793.9,3793.8,11.56407959]
[1753983944454,0.04,3793.9,3793.8,35.85577159]
[1753983944937,0.04,3793.9,3793.8,21.18297759]
[1753983945252,0.04,3793.9,3793.8,15.12023559]
[1753983945456,0.04,3793.9,3793.8,12.14643044]
[1753983945751,0.04,3793.9,3793.8,4.45746606]
[1753983945966,0.04,3793.9,3793.8,17.04304806]
[1753983946185,0.04,3793.9,3793.8,19.67792765]
[1753983946334,0.04,3793.9,3793.8,20.81952765]
[1753983946533,0.04,3793.9,3793.8,7.09334565]
[1753983946843,0.04,3793.9,3793.8,24.68691065]
[1753983947046,0.04,3793.9,3793.8,14.12852665]
[1753983947246,0.04,3793.9,3793.8,11.17034565]
[1753983947431,0.04,3793.9,3793.8,42.31194565]
[1753983947958,0.04,3793.9,3793.8,24.19642965]
[1753983948357,0.04,3793.9,3793.8,4.45746606]
[1753983948555,0.04,3793.9,3793.8,3.32511521]
[1753983948556,1.2502,3793.9,3793.8,3.32511521]
[1753983948759,0.04,3793.9,3793.8,4.40211521]
[1753983949063,1.2502,3793.9,3793.8,0.74311521]
[1753983949215,1.2502,3793.9,3793.8,7.40211521]
[1753983949422,1.2502,3793.9,3793.8,4.40211521]
[1753983949946,3.88601011,3793.9,3793.8,4.209]
[1753983950860,4.53817884,3793.9,3793.8,4.209]
[1753983951423,3.88601011,3793.9,3793.8,4.209]
[1753983952132,3.88601011,3793.9,3793.8,4.077]
[1753983952329,1.2502,3793.9,3793.8,4.077]
[1753983952528,4.01801011,3793.9,3793.8,4.077]
[1753983952745,2.63608804,3793.5,3793.4,0.132]
[1753983952933,2.63608804,3793.5,3793.4,4.209]
[1753983953144,3.84628804,3793.5,3793.4,4.209]
[1753983955121,3.84628804,3793.5,3793.4,4.077]
[1753983956028,4.6265171,3793.5,3793.4,4.077]
[1753983956939,2.63643553,3793.0,3792.9,0.132]
[1753983957264,2.63664407,3792.7,3792.6,6.464]
[1753983957463,3.84684407,3792.7,3792.6,10.541]
[1753983958267,2.63664407,3792.7,3792.6,10.541]
[1753983958629,3.84684407,3792.7,3792.6,10.541]
[1753983961569,0.4584,3793.1,3792.6,10.541]
[1753983961768,0.78022906,3793.5,3792.6,10.541]
[1753983961941,0.78022906,3793.5,3792.6,10.409]
[1753983961942,2.63654748,3792.9,3792.6,10.409]
[1753983962342,2.63654748,3792.9,3792.8,0.132]
[1753983962538,2.63654748,3792.9,3792.8,4.209]
[1753983965044,3.84674748,3792.9,3792.8,0.132]
[1753983965246,2.63664407,3792.7,3792.6,6.332]
[1753983965454,3.38844407,3792.7,3792.6,10.409]
[1753983965748,2.63664407,3792.7,3792.6,10.409]
[1753983966372,3.84684407,3792.7,3792.6,10.409]
[1753983966972,0.4584,3793.1,3792.6,10.409]
[1753983967179,2.63655669,3792.9,3792.6,10.409]
[1753983967461,2.63664407,3792.7,3792.6,10.409]
[1753983967848,3.84684407,3792.7,3792.6,10.409]
[1753983968373,3.38844407,3792.7,3792.6,10.409]
[1753983968574,3.38844407,3792.7,3792.2,0.001]
[1753983968575,2.63692218,3792.3,3792.2,0.001]
[1753983968777,2.63692218,3792.3,3792.2,4.078]
[1753983968958,3.84712218,3792.3,3792.2,4.078]
[1753983969341,2.63692218,3792.3,3792.2,4.078]
[1753983969560,2.63686154,3792.4,3792.2,4.078]
[1753983969778,2.63685265,3792.4,3792.3,0.4078]
[1753983969984,2.63692218,3792.3,3792.2,4.078]
[1753983971662,0.7938,3793.9,3792.3,2.63686159]
[1753983971872,2.63623093,3793.3,3792.5,2.63673908]
[1753983972073,2.63631193,3793.2,3792.6,2.19081999]
[1753983972294,2.63612653,3793.5,3792.6,2.19081999]
[1753983972295,2.63612653,3793.5,3792.7,4.7661]
[1753983972447,2.63630722,3793.2,3792.7,4.7661]
[1753983972645,2.63643394,3793.1,3792.8,0.6881]
[1753983972844,2.63632213,3793.2,3792.7,4.078]
[1753983973052,2.63637323,3793.1,3792.9,0.6881]
[1753983973356,2.63637323,3793.1,3793.0,4.078]
[1753983974775,3.38816603,3793.1,3793.0,4.078]
[1753983974967,2.63636603,3793.1,3793.0,4.078]
[1753983975382,2.63675557,3792.6,3792.2,0.001]
[1753983975578,2.63678312,3792.5,3792.4,3.0]
[1753983975771,2.63685961,3792.4,3792.2,0.001]
[1753983976085,2.63685961,3792.4,3792.3,7.078]
[1753983976295,2.6368101,3792.5,3792.4,3.0]
[1753983976795,2.63672251,3792.6,3792.3,4.9179]
[1753983977094,2.63672251,3792.6,3792.4,3.0]
[1753983977277,0.7518,3792.9,3792.5,0.132]
[1753983977482,0.738,3793.2,3792.6,4.078]
[1753983977694,2.63654929,3792.9,3792.6,4.078]
[1753983977995,2.63635583,3793.2,3793.1,0.132]
[1753983978295,2.63635583,3793.2,3793.1,4.078]
[1753983978456,2.63635583,3793.2,3793.1,4.21]
[1753983978654,2.63635583,3793.2,3793.1,5.3731]
[1753983978976,2.63629653,3793.2,3793.1,4.9032]
[1753983979371,2.63629653,3793.2,3793.1,4.21]
[1753983979797,2.63629653,3793.2,3793.1,5.3731]
[1753983979990,0.002,3793.5,3793.1,5.3731]
[1753983980191,0.002,3793.5,3793.2,1.70041]
[1753983980402,2.63808804,3793.5,3793.4,0.132]
[1753983980558,0.002,3793.5,3793.4,4.21]
[1753983980763,2.63808804,3793.5,3793.4,4.21]
[1753983982187,0.002,3793.5,3793.4,4.21]
[1753983982391,0.002,3793.5,3793.4,4.9032]
[1753983982589,2.63808804,3793.5,3793.4,4.9032]
[1753983982777,2.63808804,3793.5,3793.4,4.21]
[1753983983385,2.63808804,3793.5,3793.4,4.9032]
[1753983983879,2.63808804,3793.5,3793.4,5.3731]
[1753983983880,0.002,3793.5,3793.4,5.3731]
[1753983984576,2.63808804,3793.5,3793.4,5.3731]
[1753983984778,2.63808804,3793.5,3793.4,4.9032]
[1753983984982,0.002,3793.5,3793.4,4.9032]
[1753983985709,2.63808804,3793.5,3793.4,4.21]
[1753983985906,3.90349392,3793.5,3793.4,0.132]
[1753983986123,4.33499392,3793.5,3793.4,4.077]
[1753983987271,4.33499392,3793.5,3792.6,0.001]
[1753983987272,2.63664407,3792.7,3792.6,0.001]
[1753983987813,3.80614407,3792.7,3792.6,0.001]
[1753983987975,5.34176026,3792.7,3792.6,4.078]
[1753983988572,5.34176026,3792.7,3792.6,0.001]
[1753983989112,2.637409,3791.6,3791.5,0.132]
[1753983989418,2.637409,3791.6,3791.5,4.209]
[1753983989909,0.132,3792.0,3791.5,4.209]
[1753983990111,0.132,3792.5,3791.6,1.1631]
[1753983990325,2.63727074,3791.8,3791.7,1.1631]
[1753983990674,2.63719506,3792.0,3791.7,1.2951]
[1753983990874,2.63720178,3791.9,3791.8,1.1631]
[1753983991889,2.63720178,3791.9,3791.8,1.2951]
[1753983993016,2.63703893,3792.2,3791.8,1.2951]
[1753983993174,2.63703893,3792.2,3791.9,4.077]
[1753983993370,2.63707361,3792.1,3792.0,1.1631]
[1753983993574,2.63707361,3792.1,3792.0,0.6932]
[1753983993770,2.63707361,3792.1,3792.0,0.8252]
[1753983994206,2.63707361,3792.1,3792.0,0.132]
[1753983994997,3.37507361,3792.1,3792.0,4.209]
[1753983995592,2.63707361,3792.1,3792.0,4.209]
[1753983998115,4.40776118,3792.1,3792.0,4.077]
[1753983998317,4.40776118,3792.1,3791.8,0.132]
[1753983998318,2.63720034,3791.9,3791.4,0.001]
[1753983998542,2.63747857,3791.5,3791.4,0.001]
[1753983998817,2.63747857,3791.5,3791.4,4.078]
[1753983999380,4.33446611,3791.5,3791.4,0.001]
[1753984002431,3.90296611,3791.5,3791.4,0.001]
[1753984002736,3.90296611,3791.5,3791.4,0.8262]
[1753984002737,2.63747857,3791.5,3791.4,0.8262]
[1753984002938,2.63747857,3791.5,3791.4,0.133]
[1753984003704,2.76913775,3792.0,3791.4,1.2961]
[1753984004031,3.80616428,3792.7,3791.5,5.16457021]
[1753984004032,0.132,3792.4,3791.5,5.16457021]
[1753984004192,2.63739137,3791.7,3791.5,4.7712]
[1753984004392,2.63739137,3791.7,3791.5,4.078]
[1753984004588,2.63732074,3791.8,3791.6,0.8252]
[1753984004822,0.87,3792.4,3791.6,0.8252]
[1753984005028,0.738,3793.2,3791.7,0.6932]
[1753984005199,2.63699969,3792.2,3791.8,0.4699]
[1753984005404,2.63678312,3792.5,3792.1,0.132]
[1753984005729,2.63685352,3792.4,3792.2,0.6932]
[1753984006047,2.63685352,3792.4,3792.3,4.21]
[1753984006211,2.63678312,3792.5,3792.3,4.21]
[1753984006528,2.63685265,3792.4,3792.3,4.21]
[1753984007530,2.63680118,3792.5,3792.3,4.21]
[1753984007705,0.132,3792.9,3792.3,4.21]
[1753984007895,2.63685265,3792.4,3792.3,4.21]
[1753984010915,2.63685265,3792.4,3792.3,4.209]
[1753984011110,2.63679102,3792.5,3792.3,4.209]
[1753984011349,1.24130588,3793.5,3792.4,1.1392]
[1753984011549,2.63657734,3792.8,3792.5,0.708]
[1753984011851,2.6365188,3792.9,3792.6,1.1392]
[1753984012047,2.6365188,3792.9,3792.7,4.209]
[1753984012253,2.63643216,3793.1,3792.7,4.917]
[1753984012418,2.6365159,3792.9,3792.7,4.785]
[1753984012614,2.63657456,3792.8,3792.7,4.785]
[1753984012814,2.63657456,3792.8,3792.7,4.917]
[1753984013428,0.134,3793.5,3792.7,4.209]
[1753984013648,2.63615753,3793.4,3793.3,0.132]
[1753984013849,0.002,3793.5,3793.3,5.3482]
[1753984014056,2.63811412,3793.5,3793.3,5.3482]
[1753984014553,2.63615753,3793.4,3793.3,4.917]
[1753984014861,0.002,3793.5,3793.3,4.917]
[1753984015222,2.63615753,3793.4,3793.3,4.917]
[1753984015716,2.63615753,3793.4,3793.3,4.209]
[1753984018270,2.63615753,3793.4,3793.3,4.917]
[1753984018458,2.63811333,3793.5,3793.3,4.917]
[1753984018634,2.63810977,3793.5,3793.4,0.708]
[1753984018835,2.63615753,3793.4,3793.3,4.209]
[1753984019370,2.63615753,3793.4,3793.3,4.917]
[1753984019548,2.63615753,3793.4,3793.3,4.209]
[1753984019934,2.63811496,3793.5,3793.3,4.917]
[1753984020130,2.63811496,3793.5,3793.4,0.708]
[1753984020349,2.63811496,3793.5,3793.4,1.1392]
[1753984020735,0.002,3793.5,3793.4,1.1392]
[1753984020935,0.002,3793.5,3793.4,1.80602]
[1753984021169,0.002,3793.5,3793.4,4.44217753]
[1753984021351,0.002,3793.5,3793.4,1.80602]
[1753984022350,0.002,3793.5,3793.4,4.99217753]
[1753984022550,0.002,3793.5,3793.4,2.35602]
[1753984023074,0.002,3793.5,3793.4,1.80602]
[1753984024207,0.002,3793.5,3793.4,5.3462]
[1753984026937,2.63808804,3793.5,3793.4,4.207]
[1753984028121,2.63808804,3793.5,3793.4,0.132]
[1753984028419,3.34998804,3793.5,3793.4,4.207]
[1753984028921,2.63808804,3793.5,3793.4,4.207]
[1753984032444,0.002,3793.5,3793.4,5.3462]
[1753984032606,0.002,3793.5,3793.4,9.06697753]
[1753984033208,0.002,3793.5,3793.4,12.06697753]
[1753984033604,0.002,3793.5,3793.4,8.87982]
[1753984036241,0.002,3793.5,3793.4,4.206]
[1753984036242,2.63808804,3793.5,3793.4,4.206]
[1753984036416,3.76138804,3793.5,3793.4,4.206]
[1753984036602,3.76138804,3793.5,3793.4,4.074]
[1753984036808,2.63615753,3793.4,3793.3,6.463]
[1753984037144,2.63678312,3792.5,3792.0,0.6686]
[1753984037303,0.132,3793.2,3792.7,0.132]
[1753984037642,2.63650504,3792.9,3792.8,4.074]
[1753984037945,3.75980504,3792.9,3792.8,4.074]
[1753984038147,3.75980504,3792.9,3791.8,6.33]
[1753984038148,2.63699171,3792.2,3791.8,6.33]
[1753984038305,2.90069088,3792.2,3791.4,0.001]
[1753984038510,4.02399088,3792.2,3792.0,4.074]
[1753984038746,4.05695327,3792.2,3792.0,4.074]
[1753984038905,4.02399088,3792.2,3792.0,4.074]
[1753984039460,3.55419088,3792.2,3792.0,4.074]
[1753984039870,4.02399088,3792.2,3792.0,4.074]
[1753984040680,4.05695327,3792.2,3792.0,4.074]
[1753984040871,4.02399088,3792.2,3792.0,4.074]
[1753984042755,4.05695327,3792.2,3792.0,4.074]
[1753984043030,4.02399088,3792.2,3792.0,4.074]
[1753984043586,3.55419088,3792.2,3792.0,4.074]
[1753984044601,2.90069088,3792.2,3792.0,4.074]
[1753984044803,2.63699171,3792.2,3792.0,4.074]
[1753984045123,2.63699171,3792.2,3792.1,0.6696]
[1753984045903,2.63699171,3792.2,3792.1,0.001]
[1753984048328,2.63699171,3792.2,3792.1,4.076]
[1753984048816,2.63699171,3792.2,3792.1,0.001]
[1753984049014,2.63699171,3792.2,3792.1,4.076]
[1753984049015,4.32064132,3792.2,3792.1,4.076]
[1753984049222,4.41967893,3792.2,3792.1,4.076]
[1753984049723,4.41967893,3792.2,3792.1,0.001]
[1753984050033,4.41967893,3792.2,3791.4,4.075]
[1753984050034,2.63726989,3791.8,3791.4,4.075]
[1753984050190,11.64976772,3791.8,3791.4,4.075]
[1753984050392,12.77306772,3791.8,3791.4,4.075]
[1753984051594,2.63747857,3791.5,3791.4,1e-08]
[1753984051931,2.63831358,3790.3,3790.2,0.132]
[1753984052090,2.63838319,3790.2,3789.8,0.001]
[1753984052290,2.63838319,3790.2,3790.1,4.114]
[1753984053947,2.63838319,3790.2,3790.1,0.04]
[1753984054092,4.88577933,3790.2,3790.1,0.04]
[1753984054291,4.19929955,3790.2,3790.1,0.04]
[1753984055634,4.85279955,3790.2,3790.1,0.04]
[1753984055993,5.32259955,3790.2,3790.1,0.04]
[1753984057902,9.39859955,3790.2,3790.1,1e-08]
[1753984058106,2.63859204,3789.9,3789.8,0.001]
[1753984058303,13.01964224,3789.9,3789.8,0.001]
[1753984058505,14.10995984,3789.9,3789.8,0.001]
[1753984059150,14.24195984,3789.9,3789.8,0.001]
[1753984059331,11.51957731,3789.2,3789.1,1e-08]
[1753984059536,2.63970646,3788.3,3788.2,0.132]
[1753984059733,11.52027397,3788.2,3788.1,0.04]
[1753984060113,11.65227397,3788.2,3788.1,0.04]
[1753984061642,2.63953974,3788.6,3788.1,1.179]
[1753984061804,0.132,3788.4,3788.2,0.4704]
[1753984062208,0.132,3788.4,3788.3,0.6686]
[1753984062404,2.77163678,3788.4,3788.3,0.6686]
[1753984062643,0.132,3788.6,3788.3,1.139]
[1753984062821,2.63963376,3788.5,3788.3,1.139]
[1753984063021,0.132,3788.6,3788.3,1.139]
[1753984063344,2.63956711,3788.5,3788.4,0.6686]
[1753984064130,2.77151445,3788.6,3788.4,0.6686]
[1753984064337,0.132,3788.6,3788.5,0.6686]
[1753984064519,0.132,3788.6,3788.5,1.139]
[1753984065243,0.132,3788.9,3788.5,1.139]
[1753984065448,2.63943853,3788.7,3788.6,0.6686]
[1753984065633,2.63943853,3788.7,3788.1,0.04]
[1753984065634,0.93064385,3788.7,3788.1,0.04]
[1753984065832,11.52027397,3788.2,3788.1,0.04]
[1753984066003,11.65227397,3788.2,3788.1,0.04]
[1753984066209,12.35457397,3788.2,3788.1,0.04]
[1753984066926,11.65227397,3788.2,3788.1,0.04]
[1753984067125,13.55940057,3788.2,3788.1,0.04]
[1753984067541,17.73030057,3788.2,3788.1,0.04]
[1753984068047,2.64005491,3787.8,3787.7,0.001]
[1753984068216,2.67305559,3787.8,3787.7,0.001]
[1753984068408,4.9990476,3787.8,3787.7,0.001]
[1753984068912,2.64047317,3787.2,3787.1,0.04]
[1753984069206,2.77247317,3787.2,3787.1,0.04]
[1753984071615,3.97637908,3787.2,3787.1,0.04]
[1753984071816,3.94337317,3787.2,3787.1,0.04]
[1753984072012,9.97549925,3787.2,3787.1,0.04]
[1753984072212,9.50689925,3787.2,3787.1,0.04]
[1753984073327,2.64103105,3786.4,3786.1,0.6841]
[1753984073527,2.64117056,3786.2,3786.1,0.04]
[1753984073726,4.0706405,3786.2,3786.1,0.04]
[1753984074027,9.48455513,3786.2,3786.1,0.04]
[1753984074228,8.2806405,3786.2,3786.1,0.04]
[1753984074754,4.2026405,3786.2,3786.1,0.04]
[1753984074956,4.2026405,3786.2,3786.1,0.6841]
[1753984074957,6.85117056,3786.2,3786.1,0.6841]
[1753984075159,2.77317056,3786.2,3786.1,1.1332]
[1753984075315,2.77317056,3786.2,3786.1,0.04]
[1753984076152,2.77317056,3786.2,3786.1,0.6841]
[1753984076358,0.132,3786.2,3786.1,1.1332]
[1753984076552,2.77317056,3786.2,3786.1,1.1332]
[1753984077256,2.77317056,3786.2,3786.1,0.6841]
[1753984077553,8.50369269,3786.2,3786.1,0.04]
[1753984077758,8.02307056,3786.2,3786.1,0.04]
[1753984078050,2.77317056,3786.2,3786.1,0.04]
[1753984078254,6.85217056,3786.2,3786.1,0.04]
[1753984078553,6.85217056,3786.2,3786.1,0.6841]
[1753984078760,2.77317056,3786.2,3786.1,0.6841]
[1753984079653,4.079,3786.5,3786.1,1.1332]
[1753984079831,2.77296473,3786.5,3786.1,0.04]
[1753984080034,2.77300723,3786.5,3786.2,1.0932]
[1753984080240,2.64103105,3786.4,3786.3,1.0932]
[1753984080453,0.132,3786.5,3786.3,0.4491]
[1753984080680,2.7729613,3786.5,3786.4,1.0932]
[1753984081175,2.7729613,3786.5,3786.4,0.6441]
[1753984081338,2.64116813,3786.3,3786.1,0.04]
[1753984081541,2.7729613,3786.5,3786.2,1.0932]
[1753984081542,2.7730188,3786.5,3786.2,1.0932]
[1753984081761,2.7730188,3786.5,3786.3,1.0932]
[1753984081970,2.64074262,3786.9,3786.4,1.0932]
[1753984082164,2.64074262,3786.9,3786.4,0.6441]
[1753984082165,2.6409613,3786.5,3786.4,0.6441]
[1753984082561,2.6409613,3786.5,3786.4,1.0932]
[1753984082958,2.64110081,3786.3,3786.2,0.132]
[1753984083281,2.64117056,3786.2,3786.1,0.04]
[1753984083481,2.67418519,3786.2,3786.1,0.04]
[1753984083681,2.64117056,3786.2,3786.1,0.04]
[1753984083977,2.67418519,3786.2,3786.1,0.04]
[1753984084182,2.64117056,3786.2,3786.1,0.04]
[1753984084387,2.67418519,3786.2,3786.1,0.04]
[1753984084682,3.67963441,3786.2,3786.1,0.04]
[1753984085183,12.56013224,3786.2,3786.1,1e-08]
[1753984085389,16.69801761,3786.2,3786.1,1e-08]
[1753984085745,16.94218504,3786.2,3786.1,1e-08]
[1753984086151,10.96978721,3786.2,3786.1,1e-08]
[1753984086446,10.96990265,3786.2,3786.1,1e-08]
[1753984086660,21.5712923,3786.2,3786.1,1e-08]
[1753984086959,2.64186832,3785.2,3785.1,1e-08]
[1753984087162,15.6343895,3785.2,3785.1,1e-08]
[1753984087485,16.77226615,3785.2,3785.1,1e-08]
[1753984087679,15.60136615,3785.2,3785.1,1e-08]
[1753984087882,11.52236615,3785.2,3785.1,1e-08]
[1753984088050,8.25437343,3785.2,3785.1,1e-08]
[1753984089002,18.30577126,3785.2,3785.1,1e-08]
[1753984089198,21.55008538,3785.2,3785.1,1e-08]
[1753984089751,7.41968755,3785.2,3785.1,1e-08]
[1753984089984,6.72071742,3785.5,3785.1,1.09320001]
[1753984090290,4.079,3785.5,3785.2,0.6441]
[1753984090512,2.64179853,3785.3,3785.2,0.4491]
[1753984090651,2.64186832,3785.2,3785.1,1e-08]
[1753984090952,2.64186832,3785.2,3785.1,0.44910001]
[1753984091148,2.64173929,3785.4,3785.2,0.6441]
[1753984091401,2.64173929,3785.4,3785.1,0.44910001]
[1753984091402,2.64172874,3785.4,3785.3,1.0932]
[1753984091567,2.64172874,3785.4,3785.3,0.6441]
[1753984092151,2.64186832,3785.2,3785.1,1e-08]
[1753984092354,12.46192802,3785.2,3785.1,1e-08]
[1753984092676,13.16422802,3785.2,3785.1,1e-08]
[1753984092867,7.66143019,3785.2,3785.1,1e-08]
[1753984093870,4.08,3785.2,3785.1,1.09320001]
[1753984094055,2.64134466,3786.0,3785.1,1.09320001]
[1753984094249,2.64186832,3785.2,3785.1,1.09320001]
[1753984094754,2.64167245,3785.5,3785.1,1.09320001]
[1753984094955,2.64131008,3786.0,3785.2,1.0932]
[1753984095292,6.96524445,3785.9,3785.3,1.0932]
[1753984095448,0.132,3785.7,3785.3,0.6441]
[1753984095865,0.132,3785.7,3785.4,1.0932]
[1753984096051,2.64176371,3785.4,3785.2,0.6441]
[1753984096251,2.64168672,3785.5,3785.1,0.13200001]
[1753984096488,2.64172874,3785.4,3785.3,1.139]
[1753984097688,2.64168509,3785.5,3785.3,1.139]
[1753984097891,2.64168509,3785.5,3785.4,1.139]
[1753984098554,2.64186832,3785.2,3785.1,0.13200001]
[1753984098784,2.64186832,3785.2,3785.1,1e-08]
[1753984099196,12.18273159,3785.2,3785.1,1e-08]
[1753984099352,12.18273159,3785.2,3784.7,0.001]
[1753984099353,2.64214753,3784.8,3784.7,0.001]
[1753984099555,2.64214753,3784.8,3784.7,1e-08]
[1753984099556,10.27114753,3784.8,3784.7,1e-08]
[1753984099921,14.19894753,3784.8,3784.7,1e-08]
[1753984100075,2.64256646,3784.2,3784.1,0.041]
[1753984100258,15.86632094,3784.2,3784.1,0.041]
[1753984100452,17.39407077,3784.2,3784.1,0.041]
[1753984100672,2.64284581,3783.8,3783.7,0.001]
[1753984100871,6.75488138,3783.8,3783.7,0.001]
[1753984101074,9.72184581,3783.8,3783.7,0.001]
[1753984101269,11.33765004,3783.8,3783.7,0.001]
[1753984101730,12.48845004,3783.8,3783.7,0.001]
[1753984102176,13.03845004,3783.8,3783.7,1e-08]
[1753984102899,13.28360782,3783.8,3783.7,1e-08]
[1753984104504,12.57565004,3783.8,3783.7,1e-08]
[1753984104705,5.64284581,3783.8,3783.7,1e-08]
[1753984104866,5.64284581,3783.8,3783.7,0.66450001]
[1753984105066,9.72384581,3783.8,3783.7,0.66450001]
[1753984105598,2.64284581,3783.8,3783.7,0.66450001]
[1753984105905,6.72384581,3783.8,3783.7,0.66450001]
[1753984106200,7.39623039,3783.8,3783.7,1e-08]
[1753984106422,11.54703039,3783.8,3783.7,1e-08]
[1753984106762,12.09703039,3783.8,3783.7,1e-08]
[1753984107589,12.09703039,3783.8,3783.1,1e-08]
[1753984107590,2.64326496,3783.2,3783.1,1e-08]
[1753984107904,19.1878036,3783.2,3783.1,1e-08]
[1753984108074,22.48866123,3783.2,3783.1,1e-08]
[1753984108276,6.19347458,3782.9,3782.8,1e-08]
[1753984108480,10.27447458,3782.9,3782.8,1e-08]
[1753984108805,18.11783483,3782.9,3782.8,1e-08]
[1753984109478,18.24983483,3782.9,3782.8,1e-08]
[1753984109676,2.64396383,3782.2,3782.1,0.04]
[1753984109879,9.75801337,3782.2,3782.1,0.04]
[1753984110106,9.85696383,3782.2,3782.1,0.04]
[1753984111083,10.54296383,3782.2,3782.1,0.04]
[1753984111469,11.00776383,3782.2,3782.1,0.04]
[1753984111693,12.37292818,3782.2,3782.1,0.04]
[1753984112206,11.22212818,3782.2,3782.1,0.04]
[1753984112569,7.14112818,3782.2,3782.1,0.04]
[1753984112907,2.77596383,3782.2,3782.1,1.179]
[1753984113111,6.85796383,3782.2,3782.1,1.179]
[1753984113418,2.77596383,3782.2,3782.1,1.179]
[1753984113569,6.69256025,3783.9,3782.1,1.179]
[1753984113772,2.64389392,3782.3,3782.2,1.139]
[1753984114124,0.132,3782.5,3782.2,1.139]
[1753984114410,2.77577043,3782.5,3782.3,1.139]
[1753984114706,0.132,3782.5,3782.4,1.139]